[Event "*** Titled Tuesday Blitz"]
[Site "Chess.com"]
[Date "2021.04.27"]
[Round "10"]
[White "Kale36"]
[Black "Willhaven3"]
[Result "0-1"]
[WhiteElo "2278"]
[BlackElo "2480"]
[TimeControl "180+1"]
[EndTime "11:52:06 PDT"]
[Termination "Willhaven3 won by resignation"]

1. d4 {[%clk 0:03:00.9]} 1... Nf6 {[%clk 0:02:59.1]} 2. Nf3 {[%clk 0:03:01]}
2... e6 {[%clk 0:02:59.1]} 3. Bf4 {[%clk 0:03:00.9]} 3... b6 {[%clk 0:02:57.8]}
4. e3 {[%clk 0:02:57.1]} 4... Bb7 {[%clk 0:02:58.1]} 5. Nbd2 {[%clk 0:02:57.1]}
5... c5 {[%clk 0:02:56.3]} 6. c3 {[%clk 0:02:56.4]} 6... cxd4 {[%clk 0:02:55.5]}
7. exd4 {[%clk 0:02:56.2]} 7... d6 {[%clk 0:02:56]} 8. h3 {[%clk 0:02:50.6]}
8... Be7 {[%clk 0:02:56.2]} 9. Bd3 {[%clk 0:02:50.4]} 9... O-O {[%clk
0:02:56.3]} 10. O-O {[%clk 0:02:50.2]} 10... Re8 {[%clk 0:02:56.8]} 11. Qe2
{[%clk 0:02:44.2]} 11... Nbd7 {[%clk 0:02:56.3]} 12. Ba6 {[%clk 0:02:43.8]}
12... Qc8 {[%clk 0:02:54.1]} 13. Bxb7 {[%clk 0:02:42.3]} 13... Qxb7 {[%clk
0:02:55]} 14. a4 {[%clk 0:02:41.7]} 14... a6 {[%clk 0:02:54.2]} 15. Rfe1 {[%clk
0:02:39.5]} 15... Nf8 {[%clk 0:02:53.4]} 16. Ng5 {[%clk 0:02:36.8]} 16... Nd5
{[%clk 0:02:47.4]} 17. Be3 {[%clk 0:02:20.4]} 17... h6 {[%clk 0:02:40.7]} 18.
Nge4 {[%clk 0:02:16.5]} 18... f5 {[%clk 0:02:28.2]} 19. Bxh6 {[%clk 0:01:51.6]}
19... gxh6 {[%clk 0:02:18.8]} 20. Ng3 {[%clk 0:01:47.5]} 20... Nf4 {[%clk
0:02:15.9]} 21. Qf1 {[%clk 0:01:42]} 21... Bg5 {[%clk 0:02:05.8]} 22. Nf3 {[%clk
0:01:40.4]} 22... Nxh3+ {[%clk 0:02:00]} 23. Kh2 {[%clk 0:01:38]} 23... Nf4
{[%clk 0:01:59.4]} 24. Ne2 {[%clk 0:01:31]} 24... Nd3 {[%clk 0:01:51.1]} 25. Ng3
{[%clk 0:01:24.7]} 25... Nxe1 {[%clk 0:01:49.7]} 26. Rxe1 {[%clk 0:01:25.6]}
26... Bf4 {[%clk 0:01:40.1]} 27. Qd3 {[%clk 0:01:15.2]} 27... Qg7 {[%clk
0:01:38.3]} 28. Nh4 {[%clk 0:01:08.2]} 28... Qg4 {[%clk 0:01:36.1]} 29. Nxf5
{[%clk 0:01:01.4]} 29... exf5 {[%clk 0:01:31.5]} 30. Qc4+ {[%clk 0:00:58.1]}
30... Kh8 {[%clk 0:01:25.8]} 31. Qf7 {[%clk 0:00:55.4]} 31... Rxe1 {[%clk
0:01:19.9]} 32. Qf6+ {[%clk 0:00:46]} 32... Qg7 {[%clk 0:01:09.9]} 33. Qxf5
{[%clk 0:00:45.7]} 33... Qg5 {[%clk 0:01:03.7]} 0-1

[Event "*** Titled Tuesday Blitz"]
[Site "Chess.com"]
[Date "2021.04.27"]
[Round "10"]
[White "Romadk"]
[Black "rynos0411"]
[Result "1-0"]
[WhiteElo "2337"]
[BlackElo "2457"]
[TimeControl "180+1"]
[EndTime "11:52:08 PDT"]
[Termination "Romadk won by resignation"]

1. d4 {[%clk 0:03:00]} 1... Nf6 {[%clk 0:02:59.5]} 2. Nf3 {[%clk 0:03:00.1]}
2... e6 {[%clk 0:03:00]} 3. g3 {[%clk 0:03:00]} 3... d5 {[%clk 0:03:00.9]} 4.
Bg2 {[%clk 0:03:00]} 4... Be7 {[%clk 0:03:01.3]} 5. c4 {[%clk 0:02:58.8]} 5...
O-O {[%clk 0:03:01]} 6. Nc3 {[%clk 0:02:59.5]} 6... a6 {[%clk 0:02:58.2]} 7. O-O
{[%clk 0:02:51.3]} 7... dxc4 {[%clk 0:02:56.2]} 8. Ne5 {[%clk 0:02:51.4]} 8...
c5 {[%clk 0:02:50.2]} 9. dxc5 {[%clk 0:02:51.6]} 9... Qc7 {[%clk 0:02:44.8]} 10.
Nxc4 {[%clk 0:02:49.3]} 10... Bxc5 {[%clk 0:02:42.2]} 11. Bf4 {[%clk 0:02:47.6]}
11... Bxf2+ {[%clk 0:02:40.3]} 12. Rxf2 {[%clk 0:02:47.6]} 12... Qxc4 {[%clk
0:02:39.8]} 13. Rc1 {[%clk 0:02:47.6]} 13... Qb4 {[%clk 0:02:32.5]} 14. Bd6
{[%clk 0:02:44.8]} 14... Qb6 {[%clk 0:02:23.7]} 15. Na4 {[%clk 0:02:34.5]} 15...
Qd8 {[%clk 0:02:14.3]} 16. Bxf8 {[%clk 0:02:24.6]} 16... Qxf8 {[%clk 0:02:15.2]}
17. Rxc8 {[%clk 0:02:12.7]} 17... Qxc8 {[%clk 0:02:05.4]} 18. Nb6 {[%clk
0:02:12.8]} 18... Qe8 {[%clk 0:01:54.2]} 19. Nxa8 {[%clk 0:02:12.7]} 19... Nbd7
{[%clk 0:01:54]} 20. Bxb7 {[%clk 0:02:06]} 20... Nc5 {[%clk 0:01:48.6]} 21. Bf3
{[%clk 0:01:38.1]} 21... Nce4 {[%clk 0:01:47]} 22. Bxe4 {[%clk 0:01:36.8]} 22...
Nxe4 {[%clk 0:01:45.2]} 23. Rf4 {[%clk 0:01:36.8]} 23... f5 {[%clk 0:01:33.7]}
24. Rxe4 {[%clk 0:01:29.2]} 24... fxe4 {[%clk 0:01:32.6]} 25. Nb6 {[%clk
0:01:27.8]} 25... Qb8 {[%clk 0:01:24]} 26. Qb3 {[%clk 0:01:20.8]} 26... Kf7
{[%clk 0:01:21.7]} 27. Nc4 {[%clk 0:01:08.9]} 27... Qc7 {[%clk 0:01:15.9]} 28.
Qb4 {[%clk 0:01:04.2]} 28... h5 {[%clk 0:01:12.1]} 29. b3 {[%clk 0:01:00.7]}
29... h4 {[%clk 0:01:11]} 30. Qd6 {[%clk 0:01:00.1]} 30... Qa7+ {[%clk
0:01:09.7]} 31. Qb6 {[%clk 0:00:57.6]} 31... Qe7 {[%clk 0:01:05.3]} 32. Ne5+
{[%clk 0:00:56.6]} 32... Kg8 {[%clk 0:01:04.2]} 33. Qb8+ {[%clk 0:00:50.8]}
33... Kh7 {[%clk 0:01:03.2]} 34. Qh8+ {[%clk 0:00:46.3]} 1-0

[Event "*** Titled Tuesday Blitz"]
[Site "Chess.com"]
[Date "2021.04.27"]
[Round "10"]
[White "kritipatel"]
[Black "dodorox"]
[Result "1-0"]
[WhiteElo "1784"]
[BlackElo "2109"]
[TimeControl "180+1"]
[EndTime "11:52:13 PDT"]
[Termination "kritipatel won by resignation"]

1. e4 {[%clk 0:03:00.9]} 1... d6 {[%clk 0:02:57.2]} 2. d4 {[%clk 0:03:00]} 2...
e5 {[%clk 0:02:57.6]} 3. dxe5 {[%clk 0:02:58.6]} 3... dxe5 {[%clk 0:02:58.5]} 4.
Qxd8+ {[%clk 0:02:58.7]} 4... Kxd8 {[%clk 0:02:59.4]} 5. Nc3 {[%clk 0:02:57.9]}
5... c6 {[%clk 0:02:59.3]} 6. Be3 {[%clk 0:02:56.8]} 6... Nd7 {[%clk 0:02:56.7]}
7. O-O-O {[%clk 0:02:56.7]} 7... Kc7 {[%clk 0:02:56.4]} 8. f4 {[%clk 0:02:56.7]}
8... Bd6 {[%clk 0:02:50.4]} 9. f5 {[%clk 0:02:54.7]} 9... f6 {[%clk 0:02:36.3]}
10. g4 {[%clk 0:02:53.6]} 10... b6 {[%clk 0:02:14.3]} 11. h4 {[%clk 0:02:50]}
11... Bc5 {[%clk 0:02:12.7]} 12. Bd2 {[%clk 0:02:45.1]} 12... Ne7 {[%clk
0:02:02.5]} 13. Nf3 {[%clk 0:02:40.1]} 13... Bb7 {[%clk 0:01:48]} 14. g5 {[%clk
0:02:37.4]} 14... h5 {[%clk 0:01:37]} 15. Bc4 {[%clk 0:02:22.9]} 15... Rad8
{[%clk 0:01:20.2]} 16. a3 {[%clk 0:02:16.1]} 16... a6 {[%clk 0:00:56.8]} 17. b4
{[%clk 0:02:10.4]} 17... Bd6 {[%clk 0:00:56.4]} 18. Rhg1 {[%clk 0:02:09.7]}
18... a5 {[%clk 0:00:38.6]} 19. b5 {[%clk 0:01:56.4]} 19... Bxa3+ {[%clk
0:00:34.2]} 20. Kb1 {[%clk 0:01:54.9]} 20... Bb4 {[%clk 0:00:26.9]} 21. bxc6
{[%clk 0:01:47.3]} 21... Bxc6 {[%clk 0:00:25.5]} 22. gxf6 {[%clk 0:01:41.4]}
22... gxf6 {[%clk 0:00:23.7]} 23. Rg7 {[%clk 0:01:34.2]} 23... Nc8 {[%clk
0:00:22.3]} 24. Nb5+ {[%clk 0:01:28.8]} 24... Bxb5 {[%clk 0:00:21.6]} 25. Bxb5
{[%clk 0:01:27]} 25... Bxd2 {[%clk 0:00:19.4]} 26. Rxd2 {[%clk 0:01:26.4]} 26...
Nd6 {[%clk 0:00:19.9]} 27. Ba4 {[%clk 0:01:22.9]} 27... Rdg8 {[%clk 0:00:18.5]}
28. Rxd7+ {[%clk 0:01:21.7]} 1-0

[Event "*** Titled Tuesday Blitz"]
[Site "Chess.com"]
[Date "2021.04.27"]
[Round "10"]
[White "StockholmMissile"]
[Black "anon6121824"]
[Result "0-1"]
[WhiteElo "2624"]
[BlackElo "2820"]
[TimeControl "180+1"]
[EndTime "11:52:28 PDT"]
[Termination "anon6121824 won by resignation"]

1. d4 {[%clk 0:03:00.9]} 1... Nf6 {[%clk 0:03:00.9]} 2. c4 {[%clk 0:03:00.6]}
2... g6 {[%clk 0:03:00.8]} 3. Nc3 {[%clk 0:02:59.8]} 3... d6 {[%clk 0:03:00.5]}
4. e4 {[%clk 0:02:59.1]} 4... Bg7 {[%clk 0:03:01]} 5. h3 {[%clk 0:02:59.1]} 5...
O-O {[%clk 0:03:01.5]} 6. Be3 {[%clk 0:02:59.4]} 6... Nc6 {[%clk 0:02:56.1]} 7.
Nf3 {[%clk 0:02:58]} 7... e5 {[%clk 0:02:48.8]} 8. d5 {[%clk 0:02:57.8]} 8...
Ne7 {[%clk 0:02:48.6]} 9. Be2 {[%clk 0:02:56.4]} 9... Nh5 {[%clk 0:02:48.7]} 10.
O-O {[%clk 0:02:30.2]} 10... h6 {[%clk 0:02:46.1]} 11. Ne1 {[%clk 0:02:06.6]}
11... Nf4 {[%clk 0:02:45.5]} 12. Nd3 {[%clk 0:02:06.5]} 12... g5 {[%clk
0:02:45.5]} 13. c5 {[%clk 0:02:00.2]} 13... f5 {[%clk 0:02:38.6]} 14. cxd6
{[%clk 0:01:58.6]} 14... cxd6 {[%clk 0:02:39.5]} 15. f3 {[%clk 0:01:40.3]} 15...
Bd7 {[%clk 0:02:34.5]} 16. Rc1 {[%clk 0:01:37.7]} 16... Neg6 {[%clk 0:02:29.1]}
17. Nf2 {[%clk 0:01:28.3]} 17... Nxe2+ {[%clk 0:02:23.2]} 18. Qxe2 {[%clk
0:01:24.4]} 18... f4 {[%clk 0:02:24.1]} 19. Bd2 {[%clk 0:01:24.3]} 19... h5
{[%clk 0:02:25]} 20. Nb5 {[%clk 0:01:21]} 20... Qe7 {[%clk 0:01:46.4]} 21. Bb4
{[%clk 0:01:20.3]} 21... Rf6 {[%clk 0:01:45.1]} 22. Rc2 {[%clk 0:00:52.2]} 22...
a6 {[%clk 0:01:42.1]} 23. Na3 {[%clk 0:00:49.1]} 23... Raf8 {[%clk 0:01:22.9]}
24. Nc4 {[%clk 0:00:46.2]} 24... Nh4 {[%clk 0:01:16]} 25. b3 {[%clk 0:00:32.6]}
25... g4 {[%clk 0:01:15.2]} 26. fxg4 {[%clk 0:00:29.7]} 26... f3 {[%clk
0:01:14.1]} 27. gxf3 {[%clk 0:00:28]} 27... Nxf3+ {[%clk 0:01:13.1]} 28. Kh1
{[%clk 0:00:27.8]} 28... hxg4 {[%clk 0:01:09.7]} 29. Ne3 {[%clk 0:00:21.1]}
29... Nd4 {[%clk 0:01:05.1]} 30. Qd2 {[%clk 0:00:17.9]} 30... Nxc2 {[%clk
0:01:05]} 31. Qxc2 {[%clk 0:00:17.6]} 31... g3 {[%clk 0:01:05.6]} 0-1

[Event "*** Titled Tuesday Blitz"]
[Site "Chess.com"]
[Date "2021.04.27"]
[Round "10"]
[White "RamyresCoelho"]
[Black "ADODOVE"]
[Result "1-0"]
[WhiteElo "2159"]
[BlackElo "1987"]
[TimeControl "180+1"]
[EndTime "11:52:28 PDT"]
[Termination "RamyresCoelho won on time"]

1. e4 {[%clk 0:03:00]} 1... c5 {[%clk 0:02:59.2]} 2. Nf3 {[%clk 0:03:00.1]} 2...
d6 {[%clk 0:02:59.2]} 3. d4 {[%clk 0:03:00]} 3... cxd4 {[%clk 0:02:59.3]} 4.
Nxd4 {[%clk 0:03:00.9]} 4... Nf6 {[%clk 0:02:58.9]} 5. Nc3 {[%clk 0:03:01.3]}
5... g6 {[%clk 0:02:58.9]} 6. f4 {[%clk 0:03:01.7]} 6... Nc6 {[%clk 0:02:51.5]}
7. Nxc6 {[%clk 0:02:58.9]} 7... bxc6 {[%clk 0:02:50.6]} 8. e5 {[%clk 0:02:59.8]}
8... Nh5 {[%clk 0:02:49.9]} 9. g4 {[%clk 0:02:56.2]} 9... e6 {[%clk 0:02:32]}
10. gxh5 {[%clk 0:02:53.3]} 10... Qh4+ {[%clk 0:02:31.1]} 11. Ke2 {[%clk
0:02:37.6]} 11... Ba6+ {[%clk 0:02:25]} 12. Kf3 {[%clk 0:02:33.8]} 12... Qxh5+
{[%clk 0:02:15.6]} 13. Kg2 {[%clk 0:02:28.3]} 13... Bxf1+ {[%clk 0:01:52.5]} 14.
Rxf1 {[%clk 0:02:24.8]} 14... Qf5 {[%clk 0:01:39.8]} 15. exd6 {[%clk 0:02:21.4]}
15... Rd8 {[%clk 0:01:34.8]} 16. Qf3 {[%clk 0:02:14.8]} 16... Rxd6 {[%clk
0:01:27.8]} 17. Be3 {[%clk 0:02:10.7]} 17... Bg7 {[%clk 0:01:20.7]} 18. Ne4
{[%clk 0:02:08.4]} 18... Rd5 {[%clk 0:01:18.4]} 19. Rad1 {[%clk 0:02:05.4]}
19... O-O {[%clk 0:01:16.1]} 20. Rxd5 {[%clk 0:02:03.7]} 20... exd5 {[%clk
0:01:10.3]} 21. Ng3 {[%clk 0:01:58.2]} 21... Qxc2+ {[%clk 0:01:08.6]} 22. Rf2
{[%clk 0:01:58.6]} 22... Qa4 {[%clk 0:01:06]} 23. b3 {[%clk 0:01:56.1]} 23...
Qb5 {[%clk 0:00:55.5]} 24. f5 {[%clk 0:01:55.4]} 24... d4 {[%clk 0:00:49]} 25.
Bd2 {[%clk 0:01:43.8]} 25... Be5 {[%clk 0:00:11]} 26. fxg6 {[%clk 0:01:40.7]}
26... hxg6 {[%clk 0:00:08.4]} 27. Ne4 {[%clk 0:01:39.7]} 27... Qd5 {[%clk
0:00:06.2]} 28. Nf6+ {[%clk 0:01:35.3]} 28... Bxf6 {[%clk 0:00:05.5]} 29. Qxd5
{[%clk 0:01:35.6]} 29... cxd5 {[%clk 0:00:05.9]} 30. Rxf6 {[%clk 0:01:35.9]}
30... Rc8 {[%clk 0:00:04.7]} 31. Rf2 {[%clk 0:01:32.7]} 31... Rc2 {[%clk
0:00:02.9]} 32. Be3 {[%clk 0:01:18.9]} 1-0

[Event "*** Titled Tuesday Blitz"]
[Site "Chess.com"]
[Date "2021.04.27"]
[Round "10"]
[White "Rodchenkov_Vitalij"]
[Black "DarZay"]
[Result "1-0"]
[WhiteElo "2069"]
[BlackElo "2153"]
[TimeControl "180+1"]
[EndTime "11:52:34 PDT"]
[Termination "Rodchenkov_Vitalij won on time"]

1. Nf3 {[%clk 0:03:00.9]} 1... d5 {[%clk 0:01:53.9]} 2. d4 {[%clk 0:02:59]} 2...
Nf6 {[%clk 0:01:52.9]} 3. c4 {[%clk 0:02:58.4]} 3... e6 {[%clk 0:01:52.2]} 4. g3
{[%clk 0:02:57.5]} 4... Bb4+ {[%clk 0:01:50.9]} 5. Bd2 {[%clk 0:02:57.2]} 5...
Bxd2+ {[%clk 0:01:50.5]} 6. Nbxd2 {[%clk 0:02:56.4]} 6... dxc4 {[%clk
0:01:45.1]} 7. Nxc4 {[%clk 0:02:55.9]} 7... b5 {[%clk 0:01:39.6]} 8. Nce5 {[%clk
0:02:53.6]} 8... Bb7 {[%clk 0:01:38.6]} 9. Bg2 {[%clk 0:02:50.7]} 9... O-O
{[%clk 0:01:37.8]} 10. O-O {[%clk 0:02:50.1]} 10... Nc6 {[%clk 0:01:37.4]} 11.
Nxc6 {[%clk 0:02:49.3]} 11... Bxc6 {[%clk 0:01:37.3]} 12. Rc1 {[%clk 0:02:49.7]}
12... Qd6 {[%clk 0:01:36.7]} 13. e3 {[%clk 0:02:45.6]} 13... Bb7 {[%clk
0:01:34.6]} 14. Qc2 {[%clk 0:02:44]} 14... Rac8 {[%clk 0:01:34.3]} 15. Qc5
{[%clk 0:02:42.8]} 15... a6 {[%clk 0:01:33.5]} 16. Ne5 {[%clk 0:02:37.9]} 16...
Bxg2 {[%clk 0:01:26.8]} 17. Kxg2 {[%clk 0:02:38.8]} 17... Ne4 {[%clk 0:01:26.5]}
18. Qc6 {[%clk 0:02:27.8]} 18... Qd5 {[%clk 0:01:26]} 19. Qxd5 {[%clk
0:02:25.6]} 19... exd5 {[%clk 0:01:26]} 20. Rc6 {[%clk 0:02:21.1]} 20... f6
{[%clk 0:01:03.6]} 21. Nd7 {[%clk 0:02:18.2]} 21... Rf7 {[%clk 0:01:00.8]} 22.
Nc5 {[%clk 0:02:18.3]} 22... Nxc5 {[%clk 0:00:57.4]} 23. Rxc5 {[%clk 0:02:18.9]}
23... c6 {[%clk 0:00:57.4]} 24. Rfc1 {[%clk 0:02:17.6]} 24... Rfc7 {[%clk
0:00:56.5]} 25. b4 {[%clk 0:02:18.3]} 25... Kf7 {[%clk 0:00:56]} 26. Kf3 {[%clk
0:02:17.4]} 26... Ke6 {[%clk 0:00:56.1]} 27. e4 {[%clk 0:02:17.5]} 27... dxe4+
{[%clk 0:00:35.3]} 28. Kxe4 {[%clk 0:02:17.3]} 28... g6 {[%clk 0:00:34.2]} 29.
f4 {[%clk 0:02:11.4]} 29... Kd6 {[%clk 0:00:30.5]} 30. f5 {[%clk 0:02:09.6]}
30... Re8+ {[%clk 0:00:24.8]} 31. Kf4 {[%clk 0:02:09.3]} 31... g5+ {[%clk
0:00:24.7]} 32. Kf3 {[%clk 0:02:04.2]} 32... h5 {[%clk 0:00:22]} 33. d5 {[%clk
0:02:03.6]} 33... Re5 {[%clk 0:00:17]} 34. dxc6 {[%clk 0:02:01.7]} 34... Rxc5
{[%clk 0:00:15.3]} 35. Rxc5 {[%clk 0:01:59.6]} 35... Rxc6 {[%clk 0:00:15.6]} 36.
Rxc6+ {[%clk 0:01:55.6]} 36... Kxc6 {[%clk 0:00:15.7]} 37. g4 {[%clk 0:01:49.6]}
37... hxg4+ {[%clk 0:00:09.4]} 38. Kxg4 {[%clk 0:01:49.6]} 38... Kd5 {[%clk
0:00:09.5]} 39. Kh5 {[%clk 0:01:47.7]} 39... Ke5 {[%clk 0:00:08.7]} 40. Kg6
{[%clk 0:01:47.6]} 40... Kf4 {[%clk 0:00:06.1]} 41. Kxf6 {[%clk 0:01:46.7]}
41... Kf3 {[%clk 0:00:02.5]} 42. Kxg5 {[%clk 0:01:45.5]} 1-0

[Event "*** Titled Tuesday Blitz"]
[Site "Chess.com"]
[Date "2021.04.27"]
[Round "10"]
[White "WildBizon"]
[Black "OlegKrivonosov"]
[Result "0-1"]
[WhiteElo "2655"]
[BlackElo "2684"]
[TimeControl "180+1"]
[EndTime "11:52:39 PDT"]
[Termination "OlegKrivonosov won by resignation"]

1. e4 {[%clk 0:03:00.9]} 1... e5 {[%clk 0:02:59.5]} 2. Nc3 {[%clk 0:02:56.7]}
2... Nf6 {[%clk 0:02:58.4]} 3. f4 {[%clk 0:02:54]} 3... d5 {[%clk 0:02:57.8]} 4.
fxe5 {[%clk 0:02:51.3]} 4... Nxe4 {[%clk 0:02:57.2]} 5. Qf3 {[%clk 0:02:51]}
5... Nc6 {[%clk 0:02:56.1]} 6. Nxe4 {[%clk 0:02:34.3]} 6... Nd4 {[%clk
0:02:47.3]} 7. Qc3 {[%clk 0:01:40]} 7... dxe4 {[%clk 0:02:42.9]} 8. Ne2 {[%clk
0:01:40.2]} 8... Nxe2 {[%clk 0:02:35]} 9. Bxe2 {[%clk 0:01:39.9]} 9... Be7
{[%clk 0:02:32]} 10. O-O {[%clk 0:01:39.7]} 10... O-O {[%clk 0:02:32.3]} 11. Bc4
{[%clk 0:01:32.3]} 11... Be6 {[%clk 0:02:25.3]} 12. Bxe6 {[%clk 0:01:21.3]}
12... fxe6 {[%clk 0:02:25.6]} 13. Rxf8+ {[%clk 0:01:21.4]} 13... Bxf8 {[%clk
0:02:24.9]} 14. b3 {[%clk 0:01:11.9]} 14... Qd5 {[%clk 0:02:20.8]} 15. Bb2
{[%clk 0:01:06.7]} 15... Bc5+ {[%clk 0:02:18.4]} 16. Kh1 {[%clk 0:01:05.4]}
16... Rf8 {[%clk 0:02:11.7]} 17. b4 {[%clk 0:00:53.3]} 17... Bb6 {[%clk
0:02:06.5]} 18. a4 {[%clk 0:00:53.3]} 18... a5 {[%clk 0:01:30.5]} 19. Rd1 {[%clk
0:00:20.7]} 19... Rf2 {[%clk 0:01:19.1]} 20. Qh3 {[%clk 0:00:14.3]} 20... axb4
{[%clk 0:01:09.2]} 21. Qh5 {[%clk 0:00:13.3]} 21... Rf5 {[%clk 0:01:00.8]} 22.
Qg4 {[%clk 0:00:12.9]} 22... h5 {[%clk 0:00:55.9]} 23. Qg3 {[%clk 0:00:12.5]}
23... e3 {[%clk 0:00:48]} 24. h3 {[%clk 0:00:08.9]} 24... e2 {[%clk 0:00:45.6]}
25. Rc1 {[%clk 0:00:09]} 25... Rf1+ {[%clk 0:00:44.3]} 0-1

[Event "*** Titled Tuesday Blitz"]
[Site "Chess.com"]
[Date "2021.04.27"]
[Round "10"]
[White "PlotnikovPavel"]
[Black "Legendinunknown"]
[Result "0-1"]
[WhiteElo "2467"]
[BlackElo "2605"]
[TimeControl "180+1"]
[EndTime "11:52:43 PDT"]
[Termination "Legendinunknown won on time"]

1. e4 {[%clk 0:03:00.9]} 1... e5 {[%clk 0:02:59.5]} 2. Nf3 {[%clk 0:03:00.6]}
2... Nc6 {[%clk 0:02:54.4]} 3. Nc3 {[%clk 0:03:00.8]} 3... Nf6 {[%clk
0:02:53.8]} 4. Be2 {[%clk 0:03:01.4]} 4... d6 {[%clk 0:02:50.9]} 5. d4 {[%clk
0:03:01.1]} 5... exd4 {[%clk 0:02:50.5]} 6. Nxd4 {[%clk 0:03:01.9]} 6... g6
{[%clk 0:02:50.9]} 7. O-O {[%clk 0:03:01.5]} 7... Bg7 {[%clk 0:02:50.4]} 8. Be3
{[%clk 0:03:01.4]} 8... O-O {[%clk 0:02:49.9]} 9. h3 {[%clk 0:02:50.4]} 9... Re8
{[%clk 0:02:48.9]} 10. Bf3 {[%clk 0:02:49.8]} 10... Ne5 {[%clk 0:02:48.1]} 11.
Be2 {[%clk 0:02:48.2]} 11... Nc6 {[%clk 0:02:47.2]} 12. Bf3 {[%clk 0:02:47.6]}
12... Bd7 {[%clk 0:02:47]} 13. Re1 {[%clk 0:02:40.4]} 13... Nxd4 {[%clk
0:02:46.6]} 14. Bxd4 {[%clk 0:02:40.1]} 14... Bc6 {[%clk 0:02:47.3]} 15. Nd5
{[%clk 0:02:37.6]} 15... Bxd5 {[%clk 0:02:41]} 16. exd5 {[%clk 0:02:37.7]} 16...
Nd7 {[%clk 0:02:41.6]} 17. Bxg7 {[%clk 0:02:32.4]} 17... Kxg7 {[%clk 0:02:42.5]}
18. Qd4+ {[%clk 0:02:32.5]} 18... Ne5 {[%clk 0:02:36.9]} 19. Be2 {[%clk
0:02:20.1]} 19... Qf6 {[%clk 0:02:34.6]} 20. Qc3 {[%clk 0:02:19.4]} 20... Rac8
{[%clk 0:02:13]} 21. Bf1 {[%clk 0:02:11.3]} 21... Nd7 {[%clk 0:02:04.1]} 22. Qb4
{[%clk 0:01:28.5]} 22... Nb6 {[%clk 0:02:00.7]} 23. Qb3 {[%clk 0:01:08.6]} 23...
Qd4 {[%clk 0:01:45.9]} 24. Rad1 {[%clk 0:00:44]} 24... Qc5 {[%clk 0:01:43.1]}
25. Rxe8 {[%clk 0:00:38.7]} 25... Rxe8 {[%clk 0:01:44]} 26. Qd3 {[%clk
0:00:33.4]} 26... Qb4 {[%clk 0:01:35.5]} 27. b3 {[%clk 0:00:20.5]} 27... Re1
{[%clk 0:01:23.4]} 28. Rxe1 {[%clk 0:00:17.6]} 28... Qxe1 {[%clk 0:01:24.3]} 29.
Qd4+ {[%clk 0:00:17.4]} 29... f6 {[%clk 0:01:22.6]} 30. Qd3 {[%clk 0:00:07.9]}
30... a5 {[%clk 0:01:20.8]} 31. a3 {[%clk 0:00:06.6]} 31... Nd7 {[%clk
0:01:10.9]} 32. Qb5 {[%clk 0:00:05.7]} 32... Nc5 {[%clk 0:01:10.8]} 33. b4
{[%clk 0:00:03.3]} 33... axb4 {[%clk 0:01:11.7]} 34. axb4 {[%clk 0:00:03.3]}
34... Ne4 {[%clk 0:01:10.9]} 35. Qd7+ {[%clk 0:00:01.4]} 35... Kh6 {[%clk
0:01:11.3]} 0-1

[Event "*** Titled Tuesday Blitz"]
[Site "Chess.com"]
[Date "2021.04.27"]
[Round "10"]
[White "poppy73"]
[Black "Region_07"]
[Result "0-1"]
[WhiteElo "2190"]
[BlackElo "2390"]
[TimeControl "180+1"]
[EndTime "11:52:44 PDT"]
[Termination "Region_07 won on time"]

1. e4 {[%clk 0:03:00.9]} 1... Nc6 {[%clk 0:02:58.9]} 2. Nf3 {[%clk 0:02:58.3]}
2... d6 {[%clk 0:02:57.8]} 3. d4 {[%clk 0:02:57.7]} 3... g6 {[%clk 0:02:58.1]}
4. Nc3 {[%clk 0:02:57]} 4... Bg7 {[%clk 0:02:57.7]} 5. Be3 {[%clk 0:02:54.3]}
5... Bg4 {[%clk 0:02:55.1]} 6. Be2 {[%clk 0:02:52.7]} 6... Bxf3 {[%clk
0:02:52.1]} 7. Bxf3 {[%clk 0:02:52.4]} 7... e5 {[%clk 0:02:51.3]} 8. d5 {[%clk
0:02:44.1]} 8... Nd4 {[%clk 0:02:47.2]} 9. Bxd4 {[%clk 0:02:09.5]} 9... exd4
{[%clk 0:02:46.5]} 10. Ne2 {[%clk 0:02:09.7]} 10... Qf6 {[%clk 0:02:35.5]} 11.
Qd3 {[%clk 0:02:09.3]} 11... h5 {[%clk 0:02:22.3]} 12. O-O-O {[%clk 0:02:03]}
12... g5 {[%clk 0:02:21.3]} 13. Qb5+ {[%clk 0:01:36.5]} 13... Kf8 {[%clk
0:02:19]} 14. Qxb7 {[%clk 0:01:35.4]} 14... Re8 {[%clk 0:02:12.9]} 15. Nxd4
{[%clk 0:01:26.9]} 15... Ne7 {[%clk 0:02:05]} 16. h3 {[%clk 0:01:14.7]} 16... g4
{[%clk 0:02:01.3]} 17. hxg4 {[%clk 0:01:13.7]} 17... hxg4 {[%clk 0:02:01.2]} 18.
Rxh8+ {[%clk 0:01:13.5]} 18... Bxh8 {[%clk 0:02:01.4]} 19. Be2 {[%clk
0:00:40.9]} 19... Qf4+ {[%clk 0:01:57.5]} 20. Kb1 {[%clk 0:00:32.9]} 20... Bxd4
{[%clk 0:01:51.3]} 21. Rxd4 {[%clk 0:00:28.1]} 21... Qxf2 {[%clk 0:01:51.2]} 22.
Rd1 {[%clk 0:00:16.2]} 22... Qxe2 {[%clk 0:01:49.8]} 23. Rh1 {[%clk 0:00:15.9]}
23... Qxg2 {[%clk 0:01:38.1]} 24. Re1 {[%clk 0:00:14.5]} 24... Qf2 {[%clk
0:01:31.3]} 25. Rh1 {[%clk 0:00:13.9]} 25... g3 {[%clk 0:01:30.1]} 26. a4 {[%clk
0:00:09.9]} 26... g2 {[%clk 0:01:16.9]} 27. Rh8+ {[%clk 0:00:09.2]} 27... Ng8
{[%clk 0:01:15.5]} 28. Ka2 {[%clk 0:00:04.3]} 28... g1=Q {[%clk 0:01:15.1]} 29.
Qxc7 {[%clk 0:00:03.6]} 29... Qc5 {[%clk 0:01:08]} 30. Qd7 {[%clk 0:00:01.9]}
30... Qc4+ {[%clk 0:01:06.7]} 0-1